bitfinex/quotes_SOLUSD_20260221
["timestamp","ask_amount","ask_price","bid_price","bid_amount"]
[1771685497644,0.86606819,86.616,86.569,28.87839885]
[1771685497645,0.89429884,86.614,86.582,0.8535494]
[1771685498042,0.89429884,86.614,86.58,4.09987957]
[1771685498349,0.89429884,86.614,86.581,11.54987814]
[1771685499429,11.54561093,86.613,86.582,0.8535494]
[1771685499636,0.89429884,86.612,86.582,0.8535494]
[1771685501850,11.54561093,86.613,86.582,0.8535494]
[1771685501851,0.89429884,86.61,86.582,0.8535494]
[1771685503146,0.89429884,86.609,86.582,0.8535494]
[1771685505229,0.89429884,86.609,86.584,0.8535494]
[1771685506038,0.89429884,86.609,86.59,4.95342897]
[1771685506255,0.1,86.62,86.591,0.8535494]
[1771685506444,0.1,86.62,86.601,0.8535494]
[1771685507943,28.85479857,86.641,86.61,4.09987957]
[1771685508262,4.09987957,86.65,86.611,0.8535494]
[1771685508839,4.09987957,86.65,86.62,4.09987957]
[1771685509040,11.54054771,86.651,86.621,0.8535494]
[1771685510037,4.09987957,86.66,86.621,0.8535494]
[1771685510038,0.89429884,86.648,86.621,0.8535494]
[1771685510453,0.89429884,86.648,86.614,0.8535494]
[1771685511642,0.89429884,86.646,86.614,0.8535494]
[1771685511864,0.89429884,86.629,86.6,11.54726528]
[1771685512651,0.89429884,86.629,86.6,15.64714485]
[1771685513944,0.89429884,86.629,86.601,0.8535494]
[1771685514940,0.89429884,86.629,86.603,0.8535494]
[1771685515649,0.89429884,86.629,86.602,11.54707743]
[1771685515650,0.89429884,86.634,86.611,0.8535494]
[1771685518959,0.89429884,86.632,86.611,0.8535494]
[1771685520360,0.89429884,86.63,86.603,0.8535494]
[1771685521244,0.89429884,86.629,86.611,0.8535494]
[1771685521439,0.89429884,86.637,86.611,0.8535494]
[1771685521646,0.89429884,86.635,86.611,0.8535494]
[1771685521842,0.89429884,86.633,86.601,0.8535494]
[1771685522063,0.89429884,86.631,86.601,0.8535494]
[1771685522362,7.56632035,86.63,86.601,0.8535494]
[1771685522666,6.67202151,86.629,86.603,0.8535494]
[1771685522864,7.56632035,86.629,86.603,0.8535494]
[1771685523063,6.67202151,86.628,86.603,0.8535494]
[1771685523462,0.89429884,86.643,86.611,0.8535494]
[1771685523651,6.71983533,86.642,86.611,0.8535494]
[1771685523847,7.61413417,86.641,86.611,0.8535494]
[1771685524064,27.35696985,86.784,86.631,0.8535494]
[1771685524065,0.89429884,86.659,86.631,0.8535494]
[1771685524366,0.89429884,86.675,86.651,0.8535494]
[1771685524745,0.89429884,86.673,86.64,4.09987957]
[1771685525070,0.89429884,86.673,86.641,0.8535494]
[1771685525262,4.09987957,86.67,86.641,0.8535494]
[1771685525452,0.89429884,86.659,86.628,11.54355663]
[1771685525650,0.89429884,86.659,86.631,0.8535494]
[1771685526050,0.89429884,86.669,86.641,0.8535494]
[1771685527076,0.89429884,86.686,86.66,4.09987957]
[1771685527266,0.89429884,86.686,86.642,11.54174649]
[1771685527477,0.89429884,86.686,86.65,4.09987957]
[1771685527652,0.89429884,86.686,86.642,11.54174649]
[1771685527855,0.89429884,86.686,86.65,4.09987957]
[1771685529066,0.8971511,86.684,86.65,4.09987957]
[1771685529262,0.8971511,86.684,86.651,0.1734887]
[1771685531076,0.8971511,86.684,86.651,0.18085819]
[1771685531573,0.96143358,86.682,86.652,0.18085819]
[1771685533361,0.96143358,86.679,86.642,11.54161615]
[1771685533557,0.96143358,86.679,86.642,11.72472983]
[1771685533779,0.96143358,86.679,86.643,0.18311368]
[1771685534464,0.96143358,86.679,86.644,0.18297043]
[1771685535176,0.96143358,86.679,86.643,11.54161328]
[1771685535681,0.96143358,86.677,86.643,11.54161328]
[1771685535882,0.96143358,86.677,86.643,11.72444566]
[1771685536060,0.96143358,86.677,86.644,0.18270121]
[1771685536280,11.53596097,86.686,86.661,0.18270121]
[1771685536677,0.96143358,86.685,86.661,0.18270121]
[1771685536882,0.96143358,86.685,86.651,0.18270121]
[1771685537464,0.96143358,86.683,86.651,0.18270121]
[1771685537785,0.96143358,86.683,86.653,0.18255835]
[1771685538979,0.96143358,86.681,86.652,11.54041453]
[1771685539283,0.96143358,86.681,86.652,11.72270837]
[1771685539467,0.96143358,86.681,86.65,4.09987957]
[1771685540669,0.96143358,86.679,86.649,0.18216494]
[1771685541066,0.96143358,86.679,86.611,5.36086188]
[1771685541067,0.96143358,86.659,86.613,11.54561093]
[1771685541269,0.96143358,86.659,86.614,0.1820438]
[1771685541487,0.96143358,86.659,86.62,4.28192337]
[1771685542187,0.96143358,86.659,86.614,0.18191425]
[1771685542377,0.96143358,86.649,86.614,0.18191425]
[1771685542684,0.96143358,86.649,86.613,11.54561093]
[1771685542891,0.96143358,86.639,86.602,11.72899168]
[1771685543183,0.96143358,86.638,86.602,11.72899168]
[1771685544475,0.96143358,86.638,86.603,0.18166311]
[1771685544990,0.96143358,86.638,86.604,11.54681077]
[1771685546586,0.96143358,86.638,86.607,0.18142183]
[1771685549089,0.96143358,86.638,86.608,11.54627748]
[1771685550488,12.50380593,86.638,86.608,11.54627748]
[1771685550688,0.96143358,86.637,86.608,11.54627748]
[1771685550919,0.96143358,86.629,86.602,0.18097762]
[1771685551503,0.96143358,86.639,86.602,0.18097762]
[1771685551793,0.96143358,86.639,86.601,11.54721077]
[1771685551794,0.96143358,86.639,86.611,0.18086702]
[1771685552681,0.96143358,86.639,86.603,0.18076341]
[1771685554206,0.96143358,86.639,86.604,11.54681077]
[1771685554388,0.96143358,86.639,86.605,0.18054677]
[1771685554706,0.96143358,86.637,86.605,0.18054677]
[1771685557214,0.96143358,86.629,86.599,11.72765243]
[1771685557517,0.96143358,86.629,86.6,4.27901308]
[1771685558811,0.96143358,86.629,86.602,0.18002984]
[1771685559002,0.94949129,86.667,86.611,0.18002984]
[1771685559209,0.94949129,86.649,86.611,0.18002984]
[1771685561309,0.94949129,86.647,86.612,11.725475]
[1771685563602,0.94949129,86.639,86.602,11.54699166]
[1771685564003,0.94949129,86.639,86.603,0.17955117]
[1771685564208,0.94949129,86.639,86.611,0.1794559]
[1771685565616,0.94949129,86.639,86.613,0.17935762]
[1771685566898,0.94949129,86.637,86.607,0.17926151]
[1771685567102,4.09877358,86.63,86.602,11.54699214]
[1771685567413,0.94949129,86.609,86.578,11.55027836]
[1771685567607,0.94949129,86.609,86.59,4.09877358]
[1771685567796,0.94949129,86.622,86.591,0.17916923]
[1771685568912,0.94949129,86.619,86.585,0.17907446]
[1771685569920,0.94949129,86.619,86.587,0.17898124]
[1771685571198,0.94949129,86.619,86.591,0.17879252]
[1771685572908,0.94949129,86.639,86.611,0.17871127]
[1771685573625,0.94949129,86.639,86.613,0.17862285]
[1771685574001,0.94949129,86.637,86.611,11.54587754]
[1771685575525,0.94949129,86.637,86.61,4.27722007]
[1771685575820,0.94949129,86.637,86.611,0.17844649]
[1771685576225,0.94949129,86.629,86.575,28.87652822]
[1771685576536,4.09877358,86.63,86.575,28.87652822]
[1771685576537,0.94949129,86.619,86.592,0.17835904]
[1771685577612,0.94949129,86.619,86.593,11.54827757]
[1771685578121,0.94949129,86.619,86.593,11.72646439]
[1771685579503,0.94949129,86.619,86.595,11.54801085]
[1771685579708,0.94949129,86.619,86.595,11.7261158]
[1771685580526,0.94949129,86.639,86.601,0.17802905]
[1771685580724,0.94949129,86.638,86.601,0.17802905]
[1771685581610,0.94949129,86.636,86.602,0.17794982]
[1771685583426,11.54241259,86.637,86.601,11.54713054]
[1771685583427,4.09877358,86.63,86.601,11.54713054]
[1771685583735,0.94949129,86.638,86.61,4.09877358]
[1771685584218,0.94949129,86.638,86.605,0.17779614]
[1771685585126,0.94949129,86.629,86.601,11.54713054]
[1771685585933,0.94949129,86.619,86.582,0.28432314]
[1771685586111,0.94949129,86.619,86.59,4.09877358]
[1771685588128,0.94949129,86.619,86.591,11.5485443]
[1771685589429,0.96011457,86.618,86.591,11.5485443]
[1771685591732,0.95811413,86.624,86.6,4.09877358]
[1771685591938,4.09877358,86.64,86.591,11.5485443]
[1771685591939,0.95811413,86.639,86.61,4.09877358]
[1771685592734,0.95811413,86.638,86.61,4.09877358]
[1771685593719,0.95811413,86.638,86.613,0.176957]
[1771685595230,0.95811413,86.638,86.599,0.17681974]
[1771685595435,0.95811413,86.645,86.611,0.17681974]
[1771685596020,0.95811413,86.644,86.612,11.54574423]
[1771685596225,0.95811413,86.644,86.612,11.72249292]
[1771685597619,0.95811413,86.643,86.612,11.72249292]
[1771685598922,0.95811413,86.639,86.612,11.72249292]
[1771685599528,0.95811413,86.639,86.612,11.54574423]
[1771685601139,0.95811413,86.645,86.611,0.17643759]
[1771685601720,0.95811413,86.619,86.581,0.17643759]
[1771685602032,0.95811413,86.609,86.581,0.17643759]
[1771685604841,0.95811413,86.609,86.581,11.54987814]
[1771685605854,11.54620987,86.609,86.571,11.55121229]
[1771685606150,0.95811413,86.608,86.571,11.83553543]
[1771685606834,0.95811413,86.608,86.573,11.55094544]
[1771685607341,0.95811413,86.599,86.563,0.17610913]
[1771685607550,0.95811413,86.599,86.562,11.55230867]
[1771685607551,0.95811413,86.599,86.571,0.17610913]
[1771685609046,0.95811413,86.599,86.573,0.17605538]
[1771685609238,0.95811413,86.607,86.573,0.17605538]
[1771685609442,0.95811413,86.629,86.591,0.17601003]
[1771685609625,0.95811413,86.628,86.591,0.17601003]
[1771685612147,11.54347851,86.629,86.591,0.17601003]
[1771685612148,0.95811413,86.626,86.591,11.72451683]
[1771685612328,0.95811413,86.626,86.592,0.17583538]
[1771685612530,0.95811413,86.639,86.601,0.17583538]
[1771685613533,0.95811413,86.638,86.602,11.72285387]
[1771685615947,0.95811413,86.629,86.592,11.54833449]
[1771685616648,0.95811413,86.609,86.574,0.17561589]
[1771685616853,0.95811413,86.599,86.571,11.55108225]
[1771685617828,0.95811413,86.599,86.561,0.17561589]
[1771685617829,0.95811413,86.599,86.562,11.55241329]
[1771685618536,0.95811413,86.599,86.562,11.72787819]
[1771685619250,0.95811413,86.599,86.563,0.17542411]
[1771685620435,0.91672225,86.589,86.552,28.88430893]
[1771685620741,0.91672225,86.579,86.55,0.2]
[1771685621857,0.91672225,86.577,86.55,0.2]
[1771685622965,0.91672225,86.569,86.55,0.2]
[1771685623534,4.10005418,86.56,86.524,11.55748694]
[1771685623730,0.91672225,86.559,86.524,11.55748694]
[1771685624351,0.91672225,86.549,86.512,28.89767777]
[1771685624657,0.91672225,86.549,86.509,0.17520391]
[1771685624658,0.91672225,86.549,86.513,11.55895645]
[1771685625036,0.91672225,86.547,86.513,11.55895645]
[1771685625345,0.91672225,86.539,86.51,0.2]
[1771685625738,0.91672225,86.539,86.511,11.55922368]
[1771685627460,0.91672225,86.538,86.511,11.55922368]
[1771685628544,0.91672225,86.549,86.52,4.10005418]
[1771685629132,0.91672225,86.548,86.512,0.28432314]
[1771685629335,0.91672225,86.548,86.511,11.55922368]
[1771685629543,11.55441551,86.547,86.511,11.55922368]
[1771685629855,0.91672225,86.546,86.511,11.55922368]
[1771685630550,0.91672225,86.546,86.511,11.73421448]
[1771685630933,0.91672225,86.546,86.512,0.1749908]
[1771685632041,0.91672225,86.546,86.511,11.55922368]
[1771685632042,0.91672225,86.544,86.511,11.55922368]
[1771685635461,0.91672225,86.543,86.512,0.17480536]
[1771685635863,11.55081202,86.574,86.531,0.37480537]
[1771685636152,11.55081202,86.574,86.54,4.10005418]
[1771685636358,4.10005418,86.57,86.54,4.10005418]
[1771685637164,4.10005418,86.57,86.537,0.37491606]
[1771685637363,11.55147916,86.569,86.531,11.9315773]
[1771685637948,0.91672225,86.568,86.531,11.9315773]
[1771685638651,0.91672225,86.559,86.532,0.37513067]
[1771685638959,0.91672225,86.559,86.531,11.55655198]
[1771685641152,0.91672225,86.539,86.51,0.57547204]
[1771685641376,0.91672225,86.539,86.513,11.55893166]
[1771685643938,0.91672225,86.537,86.51,0.2]
[1771685644143,0.91672225,86.529,86.51,0.2]
[1771685644740,0.91672225,86.519,86.5,0.2]
[1771685645149,0.91672225,86.509,86.48,0.2]
[1771685645341,0.91672225,86.499,86.48,0.2]
[1771685645542,0.91672225,86.489,86.457,11.5664144]
[1771685645750,0.91672225,86.489,86.451,11.56724234]
[1771685646151,0.91672225,86.479,86.444,11.56808134]
[1771685646350,0.91672225,86.479,86.453,0.37602206]
[1771685648767,0.91672225,86.479,86.421,5.36086188]
[1771685648768,0.94897175,86.469,86.441,11.56858239]
[1771685649867,0.94897175,86.469,86.435,0.3765678]
[1771685650063,0.94897175,86.469,86.44,4.10005418]
[1771685650967,0.94897175,86.469,86.441,11.56858435]
[1771685652255,0.87856904,86.468,86.437,0.37687771]
[1771685653167,0.87856904,86.459,86.43,11.57003345]
[1771685653955,0.87856904,86.459,86.43,15.67008763]
[1771685655777,0.87856904,86.457,86.423,11.57090361]
[1771685656174,0.87856904,86.449,86.423,11.57090361]
[1771685656388,0.87856904,86.449,86.413,11.57233286]
[1771685656549,0.87856904,86.449,86.42,4.47330285]
[1771685656755,0.87856904,86.457,86.421,0.37324867]
[1771685658557,0.87856904,86.465,86.44,4.10005418]
[1771685658758,0.87856904,86.483,86.441,0.37149242]
[1771685658967,0.87856904,86.479,86.441,0.37149242]
[1771685661395,0.87856904,86.477,86.451,0.36892442]
[1771685662572,0.87856904,86.477,86.443,0.36809019]
[1771685663789,0.87856904,86.469,86.431,0.36726485]
[1771685663990,0.87856904,86.459,86.423,11.93825868]
[1771685664285,0.87856904,86.459,86.424,0.3664544]
[1771685665181,0.87856904,86.459,86.431,0.36565063]
[1771685665389,0.87856904,86.469,86.44,4.10005418]
[1771685665772,0.87856904,86.467,86.437,0.36565063]
[1771685666473,0.87856904,86.467,86.435,11.56936244]
[1771685667380,0.87856904,86.459,86.423,11.5709307]
[1771685667583,0.87856904,86.459,86.424,0.36408162]
[1771685667780,0.87856904,86.459,86.433,0.36408162]
[1771685670686,0.87856904,86.459,86.435,0.36179756]
[1771685670882,0.87856904,86.465,86.435,0.36179756]
[1771685674578,0.87856904,86.465,86.437,0.35885635]
[1771685674780,0.87856904,86.465,86.441,0.35885635]
[1771685675692,0.87856904,86.473,86.441,0.35885635]
[1771685676190,0.87856904,86.469,86.436,11.56925355]
[1771685676495,0.87856904,86.468,86.431,11.85424596]
[1771685676990,11.56491909,86.469,86.431,11.85424596]
[1771685676991,0.87856904,86.459,86.431,11.56992282]
[1771685682482,0.89620484,86.457,86.426,11.57059218]
[1771685683700,0.89620484,86.457,86.427,0.35208666]
[1771685684702,0.89620484,86.449,86.421,11.57126161]
[1771685685782,0.89620484,86.449,86.413,11.57224403]
[1771685686286,0.89620484,86.449,86.414,0.35020252]
[1771685687097,0.89620484,86.447,86.414,0.35020252]
[1771685688307,0.89620484,86.46,86.431,0.34898849]
[1771685688488,0.89620484,86.46,86.44,4.11587951]
[1771685688804,0.89620484,86.46,86.429,0.34898849]
[1771685689101,0.89620484,86.46,86.431,0.34898849]
[1771685689307,0.89620484,86.46,86.432,11.91817451]
[1771685690208,0.89620484,86.467,86.441,0.34778996]
[1771685691205,0.89620484,86.467,86.442,11.56845052]
[1771685695000,0.89620484,86.474,86.443,0.34548154]
[1771685696306,0.89620484,86.474,86.442,11.56845052]
[1771685697108,11.5643033,86.473,86.442,11.56845052]
[1771685697412,0.89620484,86.472,86.442,11.56845052]
[1771685698017,0.89620484,86.472,86.443,0.3438234]
[1771685698802,0.89620484,86.48,86.445,0.34329064]
[1771685698996,11.5625344,86.487,86.461,0.92182722]
[1771685700298,4.11587951,86.47,86.423,0.92182722]
[1771685700501,4.11587951,86.47,86.431,0.92182722]
[1771685700706,11.56483826,86.469,86.433,0.92182722]
[1771685700901,0.89620484,86.468,86.433,0.92182722]
[1771685701307,11.56483826,86.469,86.426,0.92182722]
[1771685701308,0.89620484,86.459,86.426,0.92182722]
[1771685701697,0.89620484,86.459,86.421,0.92182722]
[1771685702300,0.89620484,86.459,86.421,11.57126161]
[1771685702523,0.89620484,86.459,86.431,0.92182722]
[1771685703526,0.89620484,86.457,86.422,0.92182722]
[1771685706731,0.89620484,86.455,86.422,0.92182722]
[1771685707307,4.11587951,86.48,86.431,0.92182722]
[1771685707308,0.89620484,86.461,86.431,0.92182722]
[1771685707814,11.56569802,86.463,86.431,0.92182722]
[1771685707815,0.9265992,86.459,86.431,0.92182722]
[1771685708329,0.9265992,86.459,86.424,0.94620915]
[1771685709530,0.9265992,86.457,86.418,0.94620915]
[1771685709708,0.9265992,86.457,86.412,28.93094185]
[1771685709709,0.9265992,86.449,86.421,0.94620915]
[1771685713127,0.9265992,86.449,86.413,11.57233286]
[1771685713128,0.860649,86.457,86.431,0.85738654]
[1771685714935,0.860649,86.455,86.423,0.85738654]
[1771685715436,0.860649,86.449,86.421,0.85738654]
[1771685716706,0.860649,86.449,86.415,11.57204823]
[1771685716932,0.860649,86.449,86.416,0.85738654]
[1771685719332,0.860649,86.447,86.421,0.85738654]
[1771685720540,0.860649,86.445,86.421,0.85738654]
[1771685722141,0.860649,86.443,86.415,0.85738654]
[1771685722637,0.860649,86.429,86.392,1.14170968]
[1771685722836,0.860649,86.429,86.387,0.85738654]
[1771685723023,0.860649,86.419,86.387,0.85738654]
[1771685724446,4.11587951,86.44,86.38,0.2]
[1771685724447,0.860649,86.409,86.38,0.2]
[1771685724619,0.860649,86.399,86.38,0.2]
[1771685725128,0.860649,86.399,86.363,11.57900687]
[1771685726528,0.860649,86.397,86.363,11.57900687]
[1771685727227,0.860649,86.397,86.363,11.94713565]
[1771685728343,0.860649,86.395,86.37,4.11587951]
[1771685728840,0.860649,86.395,86.364,0.36766487]
[1771685730438,0.860649,86.395,86.35,0.2]
[1771685730439,0.860649,86.389,86.351,0.36674678]
[1771685730648,0.860649,86.379,86.353,0.36674678]
[1771685732831,0.860649,86.378,86.35,4.31587951]
[1771685733023,0.860649,86.378,86.352,0.36540438]
[1771685734536,0.860649,86.378,86.353,11.58037358]
[1771685734731,0.860649,86.378,86.354,0.36496701]
[1771685738831,0.860649,86.378,86.355,11.58010537]
[1771685739027,0.860649,86.378,86.35,0.2]
[1771685739234,0.85417963,86.369,86.35,0.2]
[1771685746354,0.85417963,86.391,86.361,0.35969975]
[1771685747660,0.85417963,86.391,86.362,11.57916676]
[1771685747861,0.85417963,86.389,86.362,11.57916676]
[1771685748460,15.69924158,86.39,86.35,0.2]
[1771685748461,0.85417963,86.379,86.35,0.2]
[1771685749038,0.85417963,86.379,86.351,0.35895472]
[1771685749636,0.85417963,86.379,86.352,0.35858942]
[1771685749841,0.85417963,86.369,86.35,0.2]
[1771685751355,0.85417963,86.369,86.35,11.78075574]
[1771685751562,0.85417963,86.374,86.351,0.35787354]
[1771685756346,0.85417963,86.381,86.353,0.35617382]
[1771685757156,4.12382776,86.38,86.352,11.58050768]
[1771685757342,0.85417963,86.379,86.352,11.58050768]
[1771685761761,0.85417963,86.379,86.353,0.35456196]
[1771685761962,0.85417963,86.379,86.352,11.58050768]
[1771685762942,0.85417963,86.377,86.35,0.2]
[1771685764162,4.12382776,86.4,86.351,0.35394794]
[1771685764163,0.85417963,86.385,86.351,0.35394794]
[1771685765459,0.85417963,86.385,86.351,11.93458973]
[1771685765659,0.85417963,86.385,86.352,0.35334496]
[1771685766677,0.85417963,86.385,86.353,11.93341966]
[1771685767571,0.85417963,86.385,86.354,0.35275423]
[1771685768163,0.85417963,86.385,86.355,11.58010537]
[1771685768364,0.85417963,86.385,86.355,11.93229532]
[1771685768777,11.57613913,86.385,86.355,11.93229532]
[1771685768976,0.8678694,86.384,86.355,11.93229532]
[1771685769578,0.8678694,86.384,86.356,0.35190531]
[1771685772955,11.57613913,86.385,86.356,0.35190531]
[1771685773181,0.85605227,86.419,86.38,4.12382776]
[1771685773366,0.85605227,86.399,86.362,0.34600424]
[1771685773562,0.85605227,86.389,86.362,0.34600424]
[1771685775392,0.85605227,86.389,86.361,11.57930084]
[1771685775682,0.85605227,86.389,86.362,0.33653023]
[1771685778284,0.85605227,86.389,86.361,11.57930084]
[1771685779581,0.85605227,86.389,86.362,0.31823332]
[1771685781784,0.85605227,86.389,86.363,11.57903268]
[1771685782668,0.85605227,86.387,86.353,0.30506565]
[1771685782871,0.85605227,86.379,86.354,11.58021537]
[1771685783878,0.85605227,86.379,86.354,11.88098944]
[1771685785183,0.85605227,86.379,86.355,0.29234614]
[1771685788377,0.85605227,86.379,86.354,11.58021537]
[1771685794584,0.85605227,86.377,86.35,0.2]
[1771685795295,0.85605227,86.369,86.35,0.2]
[1771685796994,0.85605227,86.369,86.34,4.32382776]
[1771685796995,0.85605227,86.369,86.34,11.78198373]
[1771685797191,0.85605227,86.369,86.34,0.2]
[1771685797576,0.8638104,86.367,86.34,0.2]
[1771685799307,0.8638104,86.367,86.34,4.32382776]
[1771685800099,0.8638104,86.367,86.341,0.43556017]
[1771685802398,0.8638104,86.365,86.341,0.43556017]
[1771685802584,11.57863047,86.366,86.341,0.43556017]
[1771685802896,0.8638104,86.365,86.341,0.43556017]
[1771685803702,0.8638104,86.365,86.34,11.78208016]
[1771685804792,0.8638104,86.365,86.34,0.2]
[1771685807599,0.8638104,86.365,86.341,0.40989635]
[1771685807799,0.8638104,86.365,86.34,0.2]
[1771685811190,0.8638104,86.363,86.34,0.2]
[1771685814187,0.8638104,86.359,86.33,0.2]
[1771685814516,0.8638104,86.359,86.331,0.38931319]
[1771685815721,0.8638104,86.359,86.332,0.38650931]
[1771685816086,0.8638104,86.379,86.341,0.38650931]
[1771685816418,0.8638104,86.379,86.351,0.38373808]
[1771685817711,0.8638104,86.377,86.342,0.38099831]
[1771685825405,0.8638104,86.377,86.341,11.58198306]
[1771685825406,28.93204169,86.41,86.371,0.86752312]
[1771685825605,4.12381745,86.41,86.371,0.86752312]
[1771685825908,4.12381745,86.41,86.38,4.12381745]
[1771685826108,4.12381745,86.41,86.381,0.86752312]
[1771685826614,11.57286856,86.409,86.381,0.86752312]
[1771685827524,0.8638104,86.408,86.381,0.86752312]
[1771685827917,0.82282721,86.399,86.369,11.57818727]
[1771685828419,0.82282721,86.399,86.369,12.34275461]
[1771685828610,0.82282721,86.399,86.37,0.76456734]
[1771685828812,0.82282721,86.399,86.371,0.76456734]
[1771685831318,0.82282721,86.399,86.372,11.57782614]
[1771685833614,0.82282721,86.399,86.372,0.76778188]
[1771685836012,0.82282721,86.399,86.374,0.76778188]
[1771685836923,0.75982087,86.405,86.374,0.76778188]
[1771685837919,0.75982087,86.405,86.375,11.57742402]
[1771685838222,0.75982087,86.405,86.376,0.76778188]
[1771685838927,4.12381745,86.4,86.376,0.76778188]
[1771685839221,0.75982087,86.399,86.376,0.76778188]
[1771685839423,0.75982087,86.399,86.376,12.34495859]
[1771685839898,0.75982087,86.399,86.377,0.76778188]
[1771685841537,0.75982087,86.406,86.379,0.76778188]
[1771685842201,0.75982087,86.406,86.381,0.76778188]
[1771685842403,3.69383402,86.434,86.378,11.57702192]
[1771685842404,0.75982087,86.429,86.391,0.76778188]
[1771685844129,0.75982087,86.427,86.392,0.76778188]
[1771685844421,0.75982087,86.439,86.411,0.76778188]
[1771685844620,4.12381745,86.45,86.413,0.76778188]
[1771685844621,0.75982087,86.445,86.413,0.76778188]
[1771685844798,11.566711,86.455,86.43,4.12381745]
[1771685844999,0.75982087,86.454,86.431,0.76778188]
[1771685845922,0.75982087,86.452,86.431,0.76778188]
[1771685847108,11.56697858,86.453,86.412,0.76778188]
[1771685847109,0.75982087,86.449,86.412,0.76778188]
[1771685847324,0.75982087,86.439,86.407,11.57313643]
[1771685848025,0.75982087,86.437,86.407,11.57313643]
[1771685848234,0.75982087,86.429,86.398,0.76778188]
[1771685848604,0.75982087,86.429,86.4,4.12381745]
[1771685848818,0.75982087,86.429,86.401,0.76778188]
[1771685850026,11.57032443,86.428,86.401,0.76778188]
[1771685850331,0.75982087,86.427,86.395,0.76778188]
[1771685851926,11.57059218,86.426,86.395,0.76778188]
[1771685852224,0.75982087,86.425,86.395,0.76778188]
[1771685852735,0.75982087,86.425,86.396,11.57460993]
[1771685852912,11.56999225,86.431,86.401,0.76778188]
[1771685853114,0.75982087,86.43,86.401,0.76778188]
[1771685855831,0.75982087,86.448,86.411,0.76778188]
[1771685856020,0.75982087,86.439,86.411,0.76778188]
[1771685856530,0.75982087,86.439,86.402,11.57380616]
[1771685856834,0.75982087,86.439,86.403,0.76778188]
[1771685861946,0.72588626,86.437,86.403,0.76778188]
[1771685862943,0.72588626,86.429,86.397,0.74154474]
[1771685864246,0.72588626,86.429,86.385,28.93994896]
[1771685864247,0.72588626,86.429,86.401,0.74154474]
[1771685864949,0.72588626,86.429,86.411,0.74154474]
[1771685866441,0.72588626,86.444,86.411,0.74154474]
[1771685866746,0.72588626,86.444,86.421,0.74154474]
[1771685867531,11.56831669,86.443,86.421,0.74154474]
[1771685867826,0.72588626,86.442,86.421,0.74154474]
[1771685868745,0.72588626,86.44,86.421,0.74154474]
[1771685873443,11.56885202,86.439,86.421,0.74154474]
[1771685873642,0.72588626,86.438,86.421,0.74154474]
[1771685875455,0.72588626,86.438,86.411,11.57250922]
[1771685877464,0.72588626,86.438,86.412,0.69065854]
[1771685880456,0.72588626,86.449,86.421,0.68703522]
[1771685881360,0.72588626,86.447,86.421,0.68703522]
[1771685881569,0.72588626,86.447,86.402,12.25955804]
[1771685881762,0.72588626,86.447,86.403,0.68584971]
[1771685882566,0.72588626,86.445,86.405,0.68468046]
[1771685884080,0.72588626,86.445,86.392,0.68238496]
[1771685884267,0.72588626,86.429,86.391,0.68238496]
[1771685884765,0.72588626,86.427,86.401,0.68238496]
[1771685885269,0.72588626,86.427,86.41,4.11753347]
[1771685885773,0.72588626,86.427,86.41,4.79878695]
[1771685886472,0.72588626,86.427,86.41,0.68125348]
[1771685889118,0.77602983,86.438,86.411,0.67686427]
[1771685889768,0.77602983,86.438,86.421,0.67579863]
[1771685895885,0.77602983,86.438,86.411,11.57260071]
[1771685896184,0.77602983,86.438,86.412,0.66645668]
[1771685897385,0.77602983,86.438,86.413,11.57233286]
[1771685897585,0.71236396,86.443,86.414,0.66309061]
[1771685898785,0.71236396,86.441,86.414,0.66309061]
[1771685901284,4.11753347,86.45,86.414,0.66309061]
[1771685901285,0.71236396,86.439,86.414,0.66309061]
[1771685901483,0.71236396,86.439,86.388,0.65658833]
[1771685901784,0.71236396,86.429,86.4,4.11753347]
[1771685902468,0.71236396,86.429,86.4,4.77254529]
[1771685902784,4.11753347,86.44,86.377,0.65501182]
[1771685902785,4.11753347,86.42,86.377,0.65501182]
[1771685903084,0.71236396,86.419,86.391,0.65346133]
[1771685904388,3.69383402,86.464,86.411,0.65191843]
[1771685904389,12.28207751,86.433,86.411,0.65191843]
[1771685904869,0.71236396,86.432,86.411,0.65191843]
[1771685910074,0.71236396,86.437,86.42,4.11753347]
[1771685910788,0.71236396,86.437,86.419,0.64303473]
[1771685911388,0.71236396,86.437,86.413,0.64161304]
[1771685915697,0.71236396,86.448,86.43,4.75362003]
[1771685916100,0.71236396,86.448,86.431,0.63608656]
[1771685917104,0.71236396,86.463,86.441,0.63474021]
[1771685920897,0.71236396,86.463,86.443,0.62824235]
[1771685926394,0.71236396,86.463,86.444,11.56818286]
[1771685927698,0.68703118,86.459,86.432,11.56968705]
[1771685928300,0.68703118,86.459,86.433,0.61858759]
[1771685932323,0.68703118,86.459,86.432,11.56968705]
[1771685937232,0.68703118,86.459,86.432,12.17846495]
[1771685937927,0.68703118,86.459,86.433,0.6087779]
[1771685939933,0.68703118,86.457,86.415,0.60672901]
[1771685940135,0.68703118,86.449,86.415,0.60672901]
[1771685941539,0.68703118,86.447,86.415,0.60672901]
[1771685942330,0.68703118,86.447,86.412,11.57239356]